{"text_format":"3","workbook":"xlsx","n_sheets":1,"sheets":["Pricing"],"not_rendered":{"images":1},"read":"whole","date_system":"1900"}

{"sheet":"Pricing","index":0,"n_rows":83,"n_cols":6,"rows_kept":83,"merged":[[0,0,0,2],[0,3,4,5],[1,1,1,2],[2,1,2,2],[3,1,3,2],[4,0,4,2],[5,0,5,5],[9,0,9,2],[11,0,11,5],[42,0,42,2],[43,0,44,5],[45,0,45,5],[65,0,65,2],[66,0,67,5],[68,0,68,5],[73,0,73,2],[74,0,75,5],[76,0,76,3],[77,0,77,1],[78,0,78,1],[79,0,79,1],[80,0,80,1],[81,0,81,1],[82,0,82,1]]}
[]
["TENDER NUMBER","RFP "]
["TENDER NAME","PROVISION FOR CLEANING AND HYGIENE SERVICES"]
["BIDDER NAME"]
[]
["TABLE (A): CLEANING STAFF"]
["No","Item description","Quantity ","Price per unit incl. VAT ","Total Price incl. VAT per month","Total Price incl. VAT for 36 months"]
[1,"Supervisor",1,null,{"$f":"C8*D8","v":0},{"$f":"E8*36","v":0}]
[2,"Cleaners",11,null,{"$f":"C9*D9","v":0},{"$f":"E9*36","v":0}]
["Total ",{"$nulls":3},{"$f":"SUM(E8:E9)","v":0},{"$f":"SUM(F8:F9)","v":0}]
[]
["TABLE (B): Consumables "]
["No","Item description","Quantity ","Price per unit incl. VAT ","Total Price incl. VAT per month","Total Price incl. VAT for 36 months"]
[1,"2 ply toilet paper (48 per pack)",2,null,{"$f":"C14*D14","v":0},{"$f":"E14*36","v":0}]
[2,"1 ply toilet paper (48 per pack)",21,null,{"$f":"C15*D15","v":0},{"$f":"E15*36","v":0}]
[3,"Bleach (5L)",4,null,0,0]
[4,"Prosolve/equivalent (5L)",2,null,0,0]
[5,"Progen/equivalent (5L)",2,null,0,0]
[6,"Dishwashing liquid(5L)",4,null,0,0]
[7,"Furniture polish(300ml)",18,null,0,0]
[8,"Toilet bowl cleaner (5L)",5,null,0,0]
[9,"Hand gloves (Disposable and for kitchen use)",100,null,0,0]
[10,"Masks",20,null,0,0]
[11,"Hand Paper towels (6x125mm). 100 per box",14,null,0,0]
[12,"Small cleaning Pads",20,null,0,0]
[13,"Hand soap- 800ml (6 per box)",7,null,0,0]
[14,"Toilet seat sanitizer (6x 350ml per box)",12,null,0,0]
[15,"PMat Mats/Urinal Deodorizer (10 per box)",13,null,0,0]
[16,"Purinel Urinal Autosantiser Refill- 300ml",13,null,0,0]
[17,"Handy Andy (ammonia) or similar/equivalent (5L)",4,null,0,0]
[18,"Cleaning water Fred Double Buckets or similar/equivalent",10,null,0,0]
[19,"Broom with dustpan ",13,null,0,0]
[20,"Mops, Flat mops  ",15,null,0,0]
[21,"Plastic bags/refuse bags (Large) 750x950x30",200,null,0,0]
[22,"Plastic bags – Bin liners (Small) 450x600",200,null,0,0]
[23,"SHE/Hygiene Bag Plastic 100 bags per pack ",50,null,0,0]
[24,"Automatic Toilet Freshener Spray(250ml)",15,null,0,0]
[25,"Disinfectant cleaner freshener – Multi Guard (5L)",2,null,0,0]
[26,"Brasso/ similar/equivalent (1 litre)",1,null,0,0]
[27,"Glass/mirror cleaning material 5 L",2,null,0,0]
[28,"Dish swaps (small)",9,null,0,0]
[29,"Dish cloth(medium)",9,null,0,0]
["Total ",{"$nulls":3},{"$f":"SUM(E14:E42)","v":0},{"$f":"SUM(F14:F42)","v":0}]
[]
[]
["TABLE (C): RENTAL HYGIENE  SERVICES INCL. ONCE-OFF INSTALLATION"]
["No","Item description","Quantity ","Price per unit incl. VAT ","Total Price incl. VAT per month","Total Price incl. VAT for 36 months"]
[1,"SHE-Bin (Stainless steel CEO)",1,null,{"$f":"C48*D48","v":0},{"$f":"E48*36","v":0}]
[2,"SHE-Bag Dispensers",null,null,0,0]
[3,"Toilet Paper Holder (Stainless steel CEO)",1,null,0,0]
[4,"Sanitizer Dispenser (Stainless steel CEO)",1,null,0,0]
[5,"Air-freshener Dispenser (Stainless steel CEO)",1,null,0,0]
[6,"Hand Paper Towel Dispenser Stainless steel CEO)",1,null,0,0]
[7,"Used Hand Paper Towel Bin (Stainless steel)",1,null,0,0]
[8,"Hand soap Dispenser (Stainless steel)",1,null,0,0]
[9,"SHE-Bin",31,null,0,0]
[10,"Toilet Paper Holder ",49,null,0,0]
[11,"Sanitizer Dispenser",49,null,0,0]
[12,"Air-freshener Dispenser",14,null,0,0]
[13,"Hand Paper Towel Dispenser",14,null,0,0]
[14,"Used Hand Paper Towel Bin ",14,null,0,0]
[15,"Hand soap Dispenser ",14,null,0,0]
[16,"SHE Bag Dispenser",31,null,0,0]
[17,"Urinal Auto Sanitizer Cleaner Dispenser",14,null,0,0]
[18,"Hygiene service intervals",2,null,0,0]
["Total ",{"$nulls":3},{"$f":"SUM(E48:E65)","v":0},{"$f":"SUM(F48:F64)","v":0}]
[]
[]
["TABLE (D): AD-HOC SERVICES (ANNUALLY OR QUARTERLY)"]
["No","Item description","Quantity ","Price per unit incl. VAT ","Total Price incl. VAT per year","Total Price incl. VAT for 36 months"]
[1,"Carpet Cleaning -NB:  Annual (1) Service",1,null,{"$f":"C71*D71","v":0},{"$f":"E71*3","v":0}]
[2,"Rope Access Window Cleaning -NB:   Annual (1) Service",1,null,{"$f":"C72*D72","v":0},{"$f":"E72*3","v":0}]
[3,"Deep Cleaning Parking Area, Reception & Lift Lobbies (Industrial auto scrubbers & sweepers) - NB: Quarterly (4) Services per year",1,null,0,{"$f":"E73*3","v":0}]
["Total",{"$nulls":3},{"$f":"SUM(E71:E72)","v":0},{"$f":"SUM(F71:F72)","v":0}]
[]
[]
["PRICING SUMMARY"]
[null,null,"Total Price incl. VAT per month","TOTAL tender price over 36 months including VAT \n(Also quote total tender price over 36 months on SBD 3.3)"]
["TABLE (A): CLEANING STAFF",null,{"$f":"E10","v":0},{"$f":"EF10","v":0}]
["TABLE (B): CONSUMABLES",null,{"$f":"E43","v":0},{"$f":"F43","v":0}]
["TABLE (C) :RENTAL HYGIENE  SERVICES INCL. ONCE-OFF INSTALLATION",null,{"$f":"E66","v":0},{"$f":"F66","v":0}]
["TABLE (D) :AD-HOC SERVICES (ANNUALLY OR QUARTERLY)",null,{"$f":"E74","v":0},{"$f":"F74","v":0}]
["TOTAL ",null,{"$f":"SUM(C79:C82)","v":0},{"$f":"SUM(D79:D82)","v":0}]